bitfinex/quotes_BTCUSD_20250225
["timestamp","ask_amount","ask_price","bid_price","bid_amount"]
[1740494013945,0.168581,88978.0,88959.0,0.224822]
[1740494014161,0.0641122,89016.0,88995.0,0.0498]
[1740494014379,0.1008483,89065.0,88999.0,0.3]
[1740494014380,0.0008483,89065.0,88999.0,0.3]
[1740494014576,0.0008483,89065.0,89003.0,0.3]
[1740494014840,0.0008483,89065.0,89037.0,0.0498]
[1740494014990,0.0008483,89065.0,89051.0,0.168441]
[1740494015449,0.168432,89057.0,89052.0,0.65811958]
[1740494015595,0.168437,89054.0,89052.0,0.55696]
[1740494015791,0.0008483,89065.0,89052.0,0.5428]
[1740494016022,0.168428,89059.0,89052.0,0.55696]
[1740494016176,0.224576,89057.0,89052.0,0.5428]
[1740494016380,0.168438,89054.0,89052.0,0.55696]
[1740494016669,0.3008483,89053.0,89052.0,0.5428]
[1740494016804,0.0008483,89053.0,89052.0,0.5428]
[1740494017041,0.3008483,89053.0,89052.0,0.5428]
[1740494017457,0.3008483,89053.0,89052.0,0.56718888]
[1740494017665,0.1,89107.0,89052.0,0.63322051]
[1740494017892,0.224369,89139.0,89093.0,0.168362]
[1740494018220,0.014758,89140.0,89094.0,0.88207131]
[1740494018390,0.082485,89095.0,89094.0,0.9898]
[1740494018611,0.1,89172.0,89094.0,0.9898]
[1740494018612,0.0815251,89204.0,89154.0,0.0184749]
[1740494018842,1.120469,89249.0,89126.0,0.3]
[1740494018843,0.0815251,89216.0,89164.0,0.0184749]
[1740494019053,0.0815251,89219.0,89169.0,0.0184749]
[1740494019267,0.02948913,89216.0,89176.0,0.0184749]
[1740494019437,0.168184,89188.0,89187.0,0.0184749]
[1740494020136,0.168197,89181.0,89180.0,0.0184749]
[1740494020340,0.168212,89173.0,89172.0,0.0184749]
[1740494021220,0.224278,89175.0,89166.0,0.03204913]
[1740494021221,0.468223,89167.0,89166.0,0.03204913]
[1740494021624,0.3,89154.0,89153.0,0.0184749]
[1740494021819,0.1,89194.0,89149.0,0.0184749]
[1740494022030,0.3,89148.0,89145.0,0.0184749]
[1740494022236,0.3,89158.0,89146.0,0.0184749]
[1740494022451,0.168261,89147.0,89145.0,0.0184749]
[1740494022628,0.168257,89150.0,89148.0,0.0184749]
[1740494022828,0.3,89153.0,89148.0,0.0184749]
[1740494023034,0.3,89166.0,89148.0,0.0184749]
[1740494023235,0.0815251,89203.0,89156.0,0.0184749]
[1740494023477,0.0815251,89224.0,89170.0,0.0184749]
[1740494023674,0.224205,89204.0,89181.0,0.0184749]
[1740494023958,0.224147,89228.0,89184.0,0.5458351]
[1740494024070,0.224135,89232.0,89184.0,0.5458351]
[1740494024270,0.224135,89232.0,89184.0,0.3776441]
[1740494024490,0.3,89231.0,89184.0,0.0184749]
[1740494024736,0.224198,89207.0,89184.0,0.0184749]
[1740494025143,0.3,89194.0,89184.0,0.0184749]
[1740494025372,0.2152391,89237.0,89184.0,0.0184749]
[1740494025373,0.00055044,89185.0,89184.0,0.0184749]
[1740494025573,0.00055044,89185.0,89184.0,0.30041343]
[1740494025792,0.0008466,89245.0,89214.0,0.1866099]
[1740494025992,0.0008466,89245.0,89184.0,0.31374753]
[1740494025993,0.168102,89232.0,89219.0,0.0184749]
[1740494026118,0.3,89217.0,89213.0,0.0184749]
[1740494026314,0.0446368,89239.0,89217.0,0.0184749]
[1740494026518,0.0446368,89239.0,89191.0,0.08970169]
[1740494026519,0.0446368,89239.0,89226.0,0.0184749]
[1740494026725,0.0149554,89239.0,89235.0,0.0184749]
[1740494026973,0.0149554,89239.0,89237.0,0.0184749]
[1740494027117,0.0149554,89239.0,89238.0,0.0184749]
[1740494027322,0.0149554,89239.0,89238.0,0.10817659]
[1740494027567,0.0149554,89239.0,89238.0,0.22192412]
[1740494027900,0.0149554,89239.0,89238.0,0.13222243]
[1740494028431,0.4071604,89239.0,89238.0,0.0184749]
[1740494028649,0.0149554,89239.0,89238.0,0.0184749]
[1740494028864,0.0149554,89239.0,89238.0,0.13222243]
[1740494029077,0.0008466,89245.0,89244.0,0.1865529]
[1740494029289,0.223941,89309.0,89265.0,0.1865129]
[1740494029497,7e-05,89318.0,89265.0,0.30026043]
[1740494029701,0.223965,89300.0,89265.0,0.30026043]
[1740494029935,0.223996,89288.0,89274.0,0.0184749]
[1740494030136,0.168018,89276.0,89274.0,0.13222243]
[1740494030617,0.1688677,89275.0,89274.0,0.0184749]
[1740494030810,0.1688677,89275.0,89249.0,0.0337]
[1740494030811,0.168022,89274.0,89273.0,0.0184749]
[1740494031227,0.168067,89250.0,89249.0,0.0337]
[1740494031439,0.168067,89250.0,89249.0,0.0521749]
[1740494031633,0.168067,89250.0,89249.0,0.0184749]
[1740494032093,0.168067,89250.0,89249.0,0.03818962]
[1740494032210,0.168055,89256.0,89254.0,0.0184749]
[1740494032415,0.168065,89251.0,89250.0,0.0184749]
[1740494032705,0.3,89250.0,89249.0,0.01971472]
[1740494033347,0.3,89250.0,89249.0,0.03818962]
[1740494033559,0.44793,89300.0,89263.0,0.0184749]
[1740494033734,0.224053,89265.0,89263.0,0.0184749]
[1740494034179,0.3,89251.0,89238.0,0.0184749]
[1740494034382,0.336085,89263.0,89233.0,0.0184749]
[1740494034626,0.168074,89246.0,89245.0,0.0184749]
[1740494035313,0.224105,89244.0,89241.0,0.0184749]
[1740494035543,0.1,89268.0,89230.0,0.0184749]
[1740494035771,0.468106,89229.0,89228.0,0.0184749]
[1740494035949,0.468118,89223.0,89222.0,0.0184749]
[1740494036270,0.224153,89225.0,89222.0,0.0184749]
[1740494036482,0.168069,89249.0,89248.0,0.0184749]
[1740494036703,0.224088,89251.0,89246.0,0.0184749]
[1740494036893,0.224104,89244.0,89235.0,0.0184749]
[1740494037116,0.168093,89236.0,89235.0,0.0184749]
[1740494037318,0.168072,89247.0,89246.0,0.0184749]
[1740494037436,0.0008477,89275.0,89246.0,0.11374753]
[1740494037636,0.224048,89267.0,89265.0,0.0184749]
[1740494038102,0.168038,89265.0,89264.0,0.0184749]
[1740494038331,0.168046,89261.0,89259.0,0.0184749]
[1740494038535,0.16808,89243.0,89242.0,0.0682749]
[1740494038683,0.16808,89243.0,89242.0,0.0498]
[1740494038886,0.168072,89247.0,89246.0,0.0184749]
[1740494039795,0.224108,89243.0,89238.0,0.0184749]
[1740494040003,0.168087,89239.0,89238.0,0.0184749]
[1740494040565,0.3,89242.0,89221.0,0.2]
[1740494040779,0.3,89242.0,89218.0,0.0451]
[1740494040780,0.468103,89231.0,89230.0,0.0184749]
[1740494040996,0.01454085,89260.0,89204.0,0.5428]
[1740494041229,0.0008459,89266.0,89244.0,0.0184749]
[1740494041479,0.0008459,89266.0,89265.0,0.0184749]
[1740494041686,0.1688829,89266.0,89265.0,0.0184749]
[1740494041892,0.16807,89248.0,89247.0,0.10817659]
[1740494042088,0.524057,89263.0,89238.0,0.13560169]
[1740494042340,0.0008459,89266.0,89265.0,0.0184749]
[1740494042607,0.0008459,89266.0,89265.0,0.30026043]
[1740494042843,0.1688829,89266.0,89265.0,0.0184749]
[1740494043073,0.1688829,89266.0,89264.0,0.0184749]
[1740494043273,0.16804,89264.0,89263.0,0.0184749]
[1740494043480,0.0008459,89266.0,89265.0,0.0184749]
[1740494043685,0.3008459,89266.0,89260.0,0.0184749]
[1740494043896,0.3,89265.0,89249.0,0.0184749]
[1740494044106,0.468076,89245.0,89244.0,0.0184749]
[1740494044532,0.3,89244.0,89222.0,0.17684304]
[1740494044722,0.224107,89243.0,89238.0,0.08970169]
[1740494044929,0.0008477,89275.0,89238.0,0.08970169]
[1740494045136,0.168087,89239.0,89238.0,0.08970169]
[1740494045346,0.0008477,89275.0,89238.0,0.21241939]
[1740494045556,0.0008477,89275.0,89265.0,0.168038]
[1740494045768,0.0008477,89275.0,89256.0,0.11374753]
[1740494045967,0.168054,89257.0,89256.0,0.11374753]
[1740494046169,0.168059,89254.0,89253.0,0.0494]
[1740494046367,0.168099,89233.0,89232.0,0.0766]
[1740494046569,0.168099,89233.0,89232.0,0.3235]
[1740494046860,0.3,89256.0,89232.0,0.43724753]
[1740494047102,0.0576941,89340.0,89248.0,0.08970169]
[1740494047103,0.004492,89306.0,89248.0,0.08970169]
[1740494047288,0.004492,89306.0,89249.0,0.01610887]
[1740494047289,0.335925,89306.0,89249.0,0.01610887]
[1740494047565,0.223988,89291.0,89251.0,0.01454085]
[1740494047805,0.0082424,89315.0,89248.0,0.08970169]
[1740494047806,0.0082424,89315.0,89260.0,0.11374753]
[1740494048026,7e-05,89318.0,89260.0,0.11374753]
[1740494048249,7e-05,89318.0,89252.0,0.05863514]
[1740494048250,0.3,89283.0,89252.0,0.05863514]
[1740494048477,0.3,89294.0,89264.0,0.168039]
[1740494048478,0.223981,89294.0,89264.0,0.168039]
[1740494048710,0.223936,89311.0,89265.0,0.12985633]
[1740494048925,0.1688829,89266.0,89265.0,0.11374753]
[1740494049148,0.168061,89253.0,89252.0,0.0466]
[1740494049381,0.168067,89250.0,89249.0,0.01070804]
[1740494049634,0.0008459,89266.0,89249.0,0.12445557]
[1740494049824,0.0008459,89266.0,89251.0,0.01454085]
[1740494050032,0.0008459,89266.0,89265.0,0.168038]
[1740494050233,0.0008459,89266.0,89265.0,0.28178553]
[1740494050473,0.0008459,89266.0,89265.0,0.16274753]
[1740494050685,0.0008459,89266.0,89265.0,0.34532638]
[1740494051141,0.0008477,89275.0,89274.0,0.168022]
[1740494051262,0.167961,89306.0,89305.0,0.02871222]
[1740494051683,0.03035788,89328.0,89290.0,0.02871222]
[1740494051921,0.3,89294.0,89279.0,0.02871222]
[1740494052194,0.3,89289.0,89280.0,0.02871222]
[1740494052401,0.3,89281.0,89275.0,0.0476146]
[1740494052626,0.468018,89276.0,89275.0,0.0476146]
[1740494052854,0.168018,89276.0,89275.0,0.17632682]
[1740494053300,0.467991,89290.0,89289.0,0.02871222]
[1740494053551,0.3,89289.0,89283.0,0.02871222]
[1740494053767,0.335917,89308.0,89275.0,0.0476146]
[1740494053768,0.3,89285.0,89275.0,0.0476146]
[1740494053998,0.468018,89276.0,89275.0,0.02160317]
[1740494054465,0.3,89275.0,89260.0,0.02871222]
[1740494054684,0.3,89275.0,89256.0,0.06145804]
[1740494054685,0.168054,89257.0,89256.0,0.06145804]
[1740494054970,0.468054,89257.0,89256.0,0.02871222]
[1740494055193,0.224068,89259.0,89255.0,0.01329426]
[1740494055194,0.468055,89256.0,89255.0,2.6e-07]
[1740494055654,0.01454085,89255.0,89215.0,0.02871222]
[1740494055869,0.168131,89216.0,89215.0,0.12871222]
[1740494056088,0.168131,89216.0,89197.0,0.048]
[1740494056089,0.3,89225.0,89221.0,0.1]
[1740494056310,0.168127,89218.0,89217.0,0.12871222]
[1740494056533,0.01454085,89250.0,89204.0,0.01671375]
[1740494056798,0.468152,89205.0,89204.0,0.01671375]
[1740494056977,0.168135,89214.0,89213.0,0.12871222]
[1740494057172,0.01454085,89241.0,89206.0,0.02871222]
[1740494057432,0.168148,89207.0,89206.0,0.02871222]
[1740494057882,0.168148,89207.0,89206.0,0.12871222]
[1740494058082,0.168148,89207.0,89204.0,0.01671375]
[1740494058083,0.168152,89205.0,89204.0,0.01671375]
[1740494058238,0.168152,89205.0,89200.0,0.02871222]
[1740494058239,0.168159,89201.0,89200.0,0.12871222]
[1740494058442,0.168159,89201.0,89200.0,0.02871222]
[1740494058643,0.168159,89201.0,89200.0,0.12871222]
[1740494058942,0.168159,89201.0,89179.0,0.01671375]
[1740494058943,0.468187,89186.0,89185.0,8e-07]
[1740494059744,0.468199,89180.0,89179.0,5.5e-07]
[1740494060153,0.224234,89193.0,89143.0,0.03281111]
[1740494060154,0.3,89163.0,89158.0,0.1]
[1740494060367,0.168238,89159.0,89158.0,0.1]
[1740494060610,0.3,89162.0,89158.0,0.1]
[1740494060611,0.3,89162.0,89161.0,0.02871222]
[1740494060825,0.468233,89162.0,89161.0,0.12871222]
[1740494061175,0.468233,89162.0,89161.0,0.1]
[1740494061396,0.468231,89163.0,89162.0,0.1]
[1740494061770,0.692541,89163.0,89162.0,0.12871222]
[1740494061958,0.692541,89163.0,89144.0,0.00835492]
[1740494061959,0.168221,89168.0,89167.0,0.02871222]
[1740494062451,0.0792,89210.0,89175.0,0.02871222]
[1740494062657,0.00836524,89224.0,89184.0,0.02871222]
[1740494062841,0.00836524,89224.0,89167.0,0.10257291]
[1740494062842,0.168197,89181.0,89180.0,0.02871222]
[1740494063094,0.16821,89174.0,89173.0,0.1]
[1740494063295,0.468221,89168.0,89167.0,0.05320729]
[1740494063710,0.468221,89168.0,89167.0,2.9e-07]
[1740494063921,0.468221,89168.0,89155.0,0.04079249]
[1740494063922,0.3,89156.0,89155.0,9e-07]
[1740494064127,0.16828,89137.0,89136.0,2.5e-07]
[1740494064340,0.168329,89111.0,89109.0,0.02871222]
[1740494064748,0.07128778,89163.0,89119.0,0.02871222]
[1740494064951,0.468312,89120.0,89119.0,0.02871222]
[1740494065359,0.03749552,89163.0,89134.0,0.02871222]
[1740494065555,0.16828,89137.0,89136.0,0.02871222]
[1740494065763,0.3,89146.0,89136.0,0.02871222]
[1740494065992,0.168278,89138.0,89137.0,0.1]
[1740494066184,0.168255,89150.0,89149.0,0.02871222]
[1740494066406,0.168255,89150.0,89149.0,0.12871222]
[1740494067165,0.468251,89152.0,89151.0,0.1]
[1740494067290,0.3,89138.0,89135.0,0.02871222]
[1740494067533,0.168289,89132.0,89131.0,0.12871222]
[1740494068337,0.3,89131.0,89122.0,0.1]
[1740494068541,0.3,89135.0,89130.0,0.02871222]
[1740494068914,0.168291,89131.0,89130.0,0.1]
[1740494069115,0.3,89135.0,89126.0,0.02871222]
[1740494069329,0.168323,89114.0,89113.0,0.12871222]
[1740494069972,0.168295,89129.0,89128.0,0.02871222]
[1740494070137,0.00834119,89166.0,89138.0,0.02871222]
[1740494070341,0.00834119,89166.0,89133.0,0.1]
[1740494070342,0.468285,89134.0,89133.0,0.1]
[1740494070808,0.168255,89150.0,89149.0,0.02871222]
[1740494071521,0.22429,89171.0,89149.0,0.02871222]
[1740494071522,0.224294,89169.0,89164.0,0.02871222]
[1740494071801,0.0828,89217.0,89167.0,0.12871222]
[1740494072038,0.168183,89189.0,89167.0,0.41068275]
[1740494072216,0.09776017,89176.0,89175.0,0.29692022]
[1740494072511,0.0754,89232.0,89198.0,0.1]
[1740494072708,0.224132,89233.0,89208.0,0.02871222]
[1740494072913,0.03916559,89234.0,89223.0,0.02871222]
[1740494073120,0.168125,89219.0,89218.0,0.1]
[1740494073372,0.3,89218.0,89195.0,0.02871222]
[1740494073573,0.3,89218.0,89184.0,0.02871222]
[1740494073574,0.168189,89185.0,89184.0,0.02871222]
[1740494073802,0.168161,89200.0,89199.0,0.02871222]
[1740494074010,0.224212,89202.0,89198.0,0.1]
[1740494074214,0.31454085,89233.0,89198.0,0.1]
[1740494074419,0.468163,89199.0,89198.0,0.1]
[1740494074640,0.468163,89199.0,89198.0,0.12871222]
[1740494075062,0.16817,89195.0,89194.0,0.1]
[1740494075265,0.16817,89195.0,89162.0,0.08970169]
[1740494075266,0.07128778,89218.0,89177.0,0.1]
[1740494075473,0.07128778,89218.0,89158.0,0.0461]
[1740494075474,0.468201,89179.0,89178.0,0.1]
[1740494075684,0.07128778,89244.0,89205.0,0.1]
[1740494075896,0.05733106,89289.0,89178.0,0.01287122]
[1740494075897,0.26329459,89234.0,89209.0,0.1]
[1740494076105,0.224132,89233.0,89217.0,0.1]
[1740494076324,0.03916559,89234.0,89208.0,0.1]
[1740494076536,0.168129,89217.0,89216.0,0.12871222]
[1740494076745,0.0008483,89234.0,89225.0,0.1]
[1740494076956,0.168112,89226.0,89225.0,0.1]
[1740494077162,0.168118,89223.0,89222.0,0.1]
[1740494077371,0.0008483,89234.0,89222.0,0.1]
[1740494077618,0.168106,89229.0,89228.0,0.12871222]
[1740494077822,0.168106,89229.0,89228.0,0.1]
[1740494078030,0.224134,89232.0,89228.0,0.1]
[1740494078234,0.168135,89214.0,89213.0,0.02871222]
[1740494078443,0.168135,89214.0,89213.0,0.12871222]
[1740494078653,0.224172,89218.0,89217.0,0.1]
[1740494078861,0.524172,89218.0,89210.0,0.02871222]
[1740494079061,0.468135,89214.0,89213.0,0.12871222]
[1740494079262,0.3,89214.0,89213.0,0.12871222]
[1740494079470,0.0008483,89234.0,89223.0,0.1]
[1740494079674,0.1689453,89234.0,89233.0,0.12871222]
[1740494079895,0.0008483,89234.0,89233.0,0.29681122]
[1740494080104,0.0008483,89234.0,89233.0,0.12871222]
[1740494080346,0.1689453,89234.0,89233.0,0.12871222]
[1740494080761,0.3,89229.0,89227.0,0.02871222]
[1740494080970,0.3,89229.0,89228.0,0.1]
[1740494080971,0.468106,89229.0,89228.0,0.1]
[1740494081144,0.168131,89216.0,89215.0,0.04891779]
[1740494081285,0.168131,89216.0,89215.0,0.02020557]
[1740494081493,0.168131,89216.0,89215.0,0.04891779]
[1740494081695,0.468129,89217.0,89216.0,0.12871222]
[1740494081901,0.00829576,89256.0,89230.0,0.1]
[1740494082114,0.168103,89231.0,89230.0,0.12871222]
[1740494082941,0.224028,89275.0,89233.0,0.29681122]
[1740494083137,0.0798,89298.0,89267.0,0.1]
[1740494083351,0.0798,89298.0,89274.0,0.1]
[1740494083554,0.46802,89275.0,89274.0,0.1]
[1740494083755,0.3,89275.0,89270.0,0.1]
[1740494084016,0.3,89271.0,89270.0,0.1]
[1740494084225,0.468027,89271.0,89270.0,0.12871222]
[1740494084425,0.468027,89271.0,89270.0,0.1]
[1740494084640,0.3,89268.0,89241.0,0.08970169]
[1740494084843,0.03783067,89295.0,89261.0,0.1]
[1740494085042,0.3,89261.0,89249.0,0.02871222]
[1740494085194,0.168067,89250.0,89249.0,0.02871222]
[1740494085560,0.168067,89250.0,89249.0,0.12871222]
[1740494085694,0.46805,89259.0,89258.0,0.12871222]
[1740494086283,0.46805,89259.0,89258.0,0.1]
[1740494086710,0.46805,89259.0,89255.0,0.02871222]
[1740494086711,0.468055,89256.0,89255.0,0.12871222]
[1740494086915,0.468065,89251.0,89250.0,0.02871222]
[1740494087395,0.468065,89251.0,89250.0,0.12871222]
[1740494087942,0.3,89243.0,89236.0,0.0199845]
[1740494088141,0.468127,89218.0,89217.0,0.02871222]
[1740494088507,0.46814,89211.0,89210.0,0.12871222]
[1740494088642,0.46815,89206.0,89205.0,0.02871222]
[1740494088848,0.3,89206.0,89205.0,0.12871222]
[1740494089045,0.46815,89206.0,89205.0,0.12871222]
[1740494089254,0.468159,89201.0,89200.0,0.12871222]
[1740494089658,0.468159,89201.0,89200.0,0.02871222]
[1740494090117,0.468159,89201.0,89200.0,0.12871222]
[1740494090334,0.3,89200.0,89198.0,0.1]
[1740494090511,0.224193,89209.0,89169.0,0.06870323]
[1740494090512,0.3,89181.0,89177.0,0.02871222]
[1740494090710,0.168216,89171.0,89170.0,0.14871545]
[1740494090916,0.168216,89171.0,89170.0,0.04871545]
[1740494091322,0.168213,89173.0,89170.0,0.14871545]
[1740494091487,0.16821,89175.0,89174.0,0.1]
[1740494092421,0.468212,89173.0,89172.0,0.1]
[1740494092599,0.168236,89160.0,89159.0,0.02871222]
[1740494093175,0.468236,89160.0,89159.0,0.02871222]
[1740494093378,0.46824,89158.0,89157.0,0.02871222]
[1740494093785,0.46824,89158.0,89157.0,0.12871222]
[1740494093984,0.224284,89173.0,89157.0,0.12871222]
[1740494093985,0.03683715,89201.0,89180.0,0.12871222]
[1740494094180,0.081,89246.0,89199.0,0.1]
[1740494094384,0.168157,89202.0,89201.0,0.1]
[1740494094589,0.0616558,89202.0,89180.0,0.12871222]
[1740494094791,0.468193,89183.0,89182.0,0.1]
[1740494095322,0.168227,89165.0,89164.0,0.02000323]
[1740494095533,0.468197,89181.0,89180.0,0.1]
[1740494096266,0.3,89162.0,89160.0,0.1]
[1740494096417,0.0773,89205.0,89148.0,0.02000323]
[1740494096418,0.468244,89156.0,89155.0,0.12871222]
[1740494096616,0.468244,89156.0,89155.0,0.02871222]
[1740494096820,0.468244,89156.0,89155.0,0.12871222]
[1740494097047,0.468244,89156.0,89155.0,0.02871222]
[1740494097347,0.468244,89156.0,89155.0,0.12871222]
[1740494098127,0.468251,89152.0,89151.0,0.02671222]
[1740494098352,0.468255,89150.0,89147.0,0.1]
[1740494099332,0.4948472,89150.0,89133.0,0.1]
[1740494099739,0.468255,89150.0,89133.0,0.1]
[1740494100294,0.468255,89150.0,89123.0,0.02000323]
[1740494100295,0.468304,89124.0,89123.0,0.12000323]
[1740494100499,0.468304,89124.0,89123.0,0.04671545]
[1740494100703,0.468304,89124.0,89123.0,0.12671222]
[1740494100881,0.3,89124.0,89123.0,0.12671222]
[1740494101504,0.468304,89124.0,89123.0,0.12671222]
[1740494101720,0.3,89124.0,89123.0,0.12671222]
[1740494102393,0.0824,89194.0,89160.0,0.1]
[1740494102616,0.09938512,89207.0,89183.0,0.1]
[1740494102808,0.09938512,89207.0,89190.0,0.1]
[1740494103019,0.16815,89206.0,89205.0,0.1]
[1740494103368,0.09938512,89207.0,89206.0,0.12671222]
[1740494103649,0.09938512,89207.0,89206.0,0.29486222]
[1740494103857,0.26753312,89207.0,89206.0,0.12671222]
[1740494104305,0.3,89206.0,89205.0,0.1]
[1740494104544,0.468155,89203.0,89202.0,0.12671222]
[1740494104760,0.09938512,89207.0,89206.0,0.12671222]
[1740494105006,0.26753312,89207.0,89206.0,0.12671222]
[1740494105239,0.168182,89189.0,89188.0,0.01454085]
[1740494105487,0.168182,89189.0,89188.0,0.12671222]
[1740494105731,0.168184,89188.0,89187.0,0.02008389]
[1740494105936,0.168184,89188.0,89187.0,8.9e-07]
[1740494106141,0.3,89190.0,89187.0,8.9e-07]
[1740494106319,0.0763,89232.0,89202.0,0.1]
[1740494106562,0.0492,89245.0,89215.0,0.1]
[1740494106765,0.0763,89250.0,89219.0,0.1]
[1740494106883,0.468123,89220.0,89219.0,0.1]
[1740494107088,0.07328778,89255.0,89203.0,0.01267122]
[1740494107089,0.168104,89230.0,89229.0,0.1]
[1740494107381,0.336098,89260.0,89237.0,0.1]
[1740494107519,0.168133,89215.0,89214.0,0.02671222]
[1740494107718,0.3,89254.0,89232.0,0.1]
[1740494107924,0.468099,89233.0,89232.0,0.1]
[1740494108177,0.168099,89233.0,89232.0,0.1]
[1740494108377,0.0781,89283.0,89252.0,0.12671222]
[1740494108582,0.224028,89275.0,89258.0,0.12671222]
[1740494108794,0.0781,89303.0,89258.0,0.29476422]
[1740494108982,0.1688983,89259.0,89258.0,0.12671222]
[1740494109416,0.3008483,89259.0,89258.0,0.1]
[1740494109621,0.4688983,89259.0,89258.0,0.1]
[1740494109943,0.0008483,89259.0,89258.0,0.12671222]
[1740494110189,0.1688983,89259.0,89258.0,0.12671222]
[1740494111062,0.468069,89249.0,89248.0,0.1]
[1740494111376,0.468089,89238.0,89237.0,0.1]
[1740494111580,0.224116,89240.0,89232.0,0.03022272]
[1740494111581,0.692215,89237.0,89236.0,0.1]
[1740494111844,0.692215,89237.0,89232.0,0.0035105]
[1740494111845,0.468099,89233.0,89232.0,0.0035105]
[1740494112050,0.468099,89233.0,89232.0,5e-07]
[1740494112455,0.468099,89233.0,89180.0,0.13810169]
[1740494112456,0.468159,89201.0,89185.0,0.1]
[1740494112661,0.3,89201.0,89158.0,0.08970169]
[1740494112790,0.0763,89209.0,89148.0,0.04263334]
[1740494112791,0.3,89157.0,89148.0,0.04263334]
[1740494113000,0.0497,89203.0,89148.0,0.13233503]
[1740494113001,0.468257,89149.0,89148.0,0.13233503]
[1740494113202,0.3,89149.0,89148.0,0.42730625]
[1740494113406,0.0497,89203.0,89169.0,0.02671222]
[1740494113617,0.02064,89235.0,89163.0,0.02671222]
[1740494113618,0.07328778,89210.0,89163.0,0.02671222]
[1740494113829,0.07328778,89210.0,89148.0,0.23554638]
[1740494113830,0.3,89159.0,89148.0,0.03209716]
[1740494114021,0.448547,89177.0,89144.0,0.0016966]
[1740494114022,0.468265,89145.0,89144.0,0.0016966]
[1740494114221,0.468301,89126.0,89125.0,0.1]
[1740494114743,0.3,89126.0,89125.0,0.12671222]
[1740494115320,0.468302,89125.0,89117.0,0.11641391]
[1740494115544,0.468302,89125.0,89124.0,0.12671222]
[1740494116555,0.168284,89135.0,89134.0,0.12671222]
[1740494116750,0.168284,89135.0,89134.0,0.1]
[1740494116945,0.3,89126.0,89125.0,0.1]
[1740494117145,0.3,89124.0,89107.0,0.02671222]
[1740494117409,0.3,89124.0,89099.0,0.08970169]
[1740494117410,0.3,89124.0,89119.0,0.1]
[1740494117564,0.3,89124.0,89123.0,0.12840882]
[1740494117967,0.468304,89124.0,89123.0,0.12840882]
[1740494118233,0.468304,89124.0,89123.0,0.1016966]
[1740494118403,0.468291,89131.0,89130.0,0.02671222]
[1740494119675,0.468304,89124.0,89123.0,0.0016966]
[1740494120108,0.468323,89114.0,89113.0,2e-07]
[1740494120707,0.50050138,89114.0,89113.0,2e-07]
[1740494121973,0.03217838,89114.0,89113.0,2e-07]
[1740494122176,0.26886734,89114.0,89113.0,2e-07]
[1740494122381,0.168323,89114.0,89113.0,2e-07]
[1740494123966,0.18286385,89114.0,89113.0,2e-07]
[1740494124582,0.468369,89090.0,89089.0,6e-07]
[1740494125214,0.46872837,89090.0,89089.0,6e-07]
[1740494125420,0.468369,89090.0,89089.0,6e-07]
[1740494125837,0.56491409,89090.0,89089.0,6e-07]
[1740494126042,0.468369,89090.0,89089.0,6e-07]
[1740494127101,0.47085511,89090.0,89089.0,6e-07]
[1740494127633,0.47085511,89090.0,89066.0,0.1]
[1740494127634,0.30248611,89090.0,89051.0,0.02671222]
[1740494127836,1.21015663,89101.0,89059.0,2e-07]
[1740494127837,0.168425,89060.0,89059.0,2e-07]
[1740494127974,0.168425,89060.0,89052.0,0.08970169]
[1740494127975,0.168439,89053.0,89052.0,0.08966189]
[1740494128167,0.168456,89044.0,89043.0,0.08970169]
[1740494128375,0.01454085,89077.0,89034.0,0.08970169]
[1740494128376,0.168461,89041.0,89034.0,0.08970169]
[1740494128892,0.168461,89041.0,89040.0,6e-07]
[1740494129094,0.230229,89041.0,89040.0,6e-07]
[1740494129274,0.168507,89017.0,89004.0,0.04024522]
[1740494129473,0.061768,89041.0,89004.0,0.04024522]
[1740494129474,0.168529,89005.0,89004.0,0.013533]
[1740494129676,0.0813,89039.0,89004.0,0.04024522]
[1740494129882,0.168529,89005.0,89004.0,0.013533]
[1740494130112,0.468529,89005.0,89004.0,0.013533]
[1740494130513,0.46300553,89005.0,89004.0,1e-06]
[1740494131792,0.3,89005.0,89004.0,1e-06]
[1740494131999,0.468529,89005.0,89004.0,1e-06]
[1740494133127,0.3,89000.0,88968.0,0.02671222]
[1740494133324,0.168607,88964.0,88963.0,0.1016954]
[1740494133549,0.3,88953.0,88952.0,8.2e-07]
[1740494133760,0.3693401,88964.0,88942.0,0.1]
[1740494133761,0.0693401,88964.0,88942.0,0.1]
[1740494133935,0.168647,88943.0,88942.0,0.1]
[1740494134338,0.22485,88948.0,88942.0,0.1]
[1740494134540,0.393487,88948.0,88947.0,0.1]
[1740494134742,0.693487,88948.0,88947.0,0.1]
[1740494134964,0.39348,88950.0,88949.0,0.1]
[1740494135122,0.224826,88958.0,88957.0,0.1]
[1740494135327,0.224809,88965.0,88964.0,0.1]
[1740494135598,0.393414,88965.0,88964.0,0.1]
[1740494135818,0.168671,88930.0,88929.0,0.0498]
[1740494136002,0.168622,88956.0,88955.0,0.1]
[1740494136219,0.3,88964.0,88929.0,0.16354753]
[1740494136421,0.224876,88938.0,88930.0,0.11374753]
[1740494136651,0.393532,88938.0,88937.0,0.1]
[1740494136835,0.168656,88938.0,88937.0,0.11454085]
[1740494137037,0.168656,88938.0,88937.0,0.1]
[1740494137280,0.168671,88930.0,88929.0,0.1498]
[1740494137920,0.168671,88930.0,88929.0,0.0498]
[1740494138196,0.3,88929.0,88928.0,0.0016966]
[1740494138485,0.468673,88929.0,88928.0,0.0016966]
[1740494139992,0.168673,88929.0,88928.0,0.0016966]
[1740494140199,0.168673,88929.0,88928.0,0.1016966]
[1740494140610,0.168673,88929.0,88928.0,0.0016966]
[1740494142012,0.3,88931.0,88930.0,0.1]
[1740494142221,0.224835,88954.0,88928.0,0.0016966]
[1740494142222,0.0772,88984.0,88944.0,0.1]
[1740494142421,0.168662,88935.0,88934.0,0.1]
[1740494142846,0.168673,88929.0,88928.0,0.0016966]